fUST/lending_fUST_20241108
["ID","MTS","AMOUNT","RATE_DAILY","PERIOD"]
[341662256,1731071693676,-255.084672,0.0002543,7]
[341662257,1731071693697,-3000.0,0.0002543,2]
[341662258,1731071693719,-500.0,0.00025438,9]
[341662259,1731071693741,-3000.0,0.0002544,2]
[341662260,1731071693763,-3000.0,0.0002545,2]
[341662261,1731071693784,-151.0,0.0002545,7]
[341662262,1731071693805,-151.0,0.0002546,7]
[341662263,1731071693828,-151.0,0.0002546,7]
[341662264,1731071693850,-151.0,0.0002546,7]
[341662265,1731071693873,-151.0,0.0002546,7]
[341662266,1731071693895,-151.0,0.0002546,7]
[341662267,1731071693917,-220.655073,0.0002546,7]
[341662268,1731071693939,-220.655073,0.0002546,7]
[341662269,1731071693960,-235.878636,0.0002546,7]
[341662270,1731071693981,-235.878636,0.0002546,7]
[341662271,1731071694003,-3000.0,0.0002546,2]
[341662272,1731071694027,-3000.0,0.0002547,2]
[341662273,1731071694050,-572.08,0.00025479,2]
[341662274,1731071694075,-2295.09,0.00025479,2]
[341662275,1731071694098,-2169.07,0.00025479,2]
[341662276,1731071694120,-500.0,0.00025479,2]
[341662277,1731071694142,-3000.0,0.0002548,2]
[341662278,1731071694164,-3000.0,0.0002549,2]
[341662279,1731071694190,-3000.0,0.000255,2]
[341662280,1731071694213,-3000.0,0.0002551,2]
[341662281,1731071694237,-3000.0,0.0002552,2]
[341662282,1731071694262,-303.628337,0.00025525,2]
[341662283,1731071694285,-159.32501,0.00025525,2]
[341662284,1731071694308,-986.2198,0.00025525,2]
[341662285,1731071694331,-234.804876,0.00025525,2]
[341662286,1731071694353,-3000.0,0.0002553,2]
[341662287,1731071694377,-3000.0,0.0002554,2]
[341662288,1731071694399,-151.0,0.0002554,7]
[341662289,1731071694422,-3000.0,0.0002555,2]
[341662290,1731071694445,-220.655073,0.0002556,7]
[341662291,1731071694467,-220.655073,0.0002556,7]
[341662292,1731071694592,-235.878636,0.0002556,7]
[341662293,1731071694616,-235.878636,0.0002556,7]
[341662294,1731071694639,-3000.0,0.0002556,2]
[341662295,1731071694662,-151.0,0.00025569,7]
[341662296,1731071694684,-151.0,0.00025569,7]
[341662297,1731071694707,-151.0,0.00025569,7]
[341662298,1731071694729,-287.446188,0.00025569,7]
[341662299,1731071694751,-275.514,0.0002557,10]
[341662300,1731071694773,-151.0,0.0002557,7]
[341662301,1731071694795,-151.0,0.0002557,7]
[341662302,1731071694819,-151.0,0.0002557,7]
[341662303,1731071694840,-151.0,0.0002557,7]
[341662304,1731071694862,-1984.44,0.0002557,2]
[341662305,1731071694883,-2571.66,0.0002557,2]
[341662306,1731071694906,-442.407542,0.0002557,7]
[341662307,1731071694928,-442.407542,0.0002557,7]
[341662308,1731071694952,-188.423233,0.0002557,7]
[341662309,1731071694974,-188.423233,0.0002557,7]
[341662310,1731071694997,-3000.0,0.0002557,2]
[341662311,1731071695022,-500.0,0.0002557,2]
[341662312,1731071695046,-3000.0,0.0002558,2]
[341662313,1731071695070,-225.693171,0.0002559,7]
[341662314,1731071695093,-225.693171,0.0002559,7]
[341662315,1731071695115,-3000.0,0.0002559,2]
[341662316,1731071695136,-151.0,0.000256,7]
[341662317,1731071695160,-3000.0,0.000256,2]
[341662318,1731071695186,-150.112233,0.000256,19]
[341662319,1731071695210,-3000.0,0.0002561,2]
[341662320,1731071695234,-3000.0,0.0002562,2]
[341662321,1731071695260,-1015.57111743,0.00025626,2]
[341662322,1731071695281,-1000.0,0.00025626,2]
[341662323,1731071695304,-3000.0,0.0002563,2]
[341662324,1731071695327,-151.0,0.0002563,7]
[341662325,1731071695349,-151.0,0.0002564,7]
[341662326,1731071695371,-170.047714,0.0002564,7]
[341662327,1731071695392,-151.0,0.0002564,7]
[341662328,1731071695414,-220.655073,0.0002564,7]
[341662329,1731071695436,-220.655073,0.0002564,7]
[341662330,1731071695457,-235.878636,0.0002564,7]
[341662331,1731071695479,-235.878636,0.0002564,7]
[341662332,1731071695501,-3000.0,0.0002564,2]
[341662333,1731071695523,-3000.0,0.0002565,2]
[341662334,1731071695544,-187.108951,0.0002566,7]
[341662335,1731071695567,-187.108951,0.0002566,7]
[341662336,1731071695589,-3000.0,0.0002566,2]
[341662337,1731071695612,-151.0,0.0002567,7]
[341662338,1731071695633,-151.0,0.0002567,7]
[341662339,1731071695655,-151.0,0.0002567,7]
[341662340,1731071695676,-5718.223991,0.0002567,2]
[341662341,1731071695698,-151.0,0.00025679,7]
[341662342,1731071695719,-151.0,0.00025679,7]
[341662343,1731071695741,-151.0,0.00025679,7]
[341662344,1731071695763,-151.0,0.00025679,7]
[341662345,1731071695785,-244.769337,0.00025679,7]
[341662346,1731071695807,-151.0,0.00025679,7]
[341662347,1731071695831,-195.00697,0.00025679,7]
[341662348,1731071695853,-151.0,0.00025679,7]
[341662349,1731071695876,-195.00697,0.00025679,7]
[341662350,1731071695899,-375.22235,0.00025679,7]
[341662351,1731071695921,-375.22235,0.00025679,7]
[341662352,1731071695943,-255.084672,0.00025679,7]
[341662353,1731071695966,-255.084672,0.00025679,7]
[341662354,1731071695990,-572.08,0.00025753,2]
[341662355,1731071696013,-2295.09,0.00025753,2]
[341662356,1731071696038,-2169.07,0.00025753,2]
[341662357,1731071696061,-500.0,0.00025753,2]
[341662358,1731071696084,-303.628337,0.0002584,2]
[341662359,1731071696107,-159.32501,0.0002584,2]
[341662360,1731071696129,-986.2198,0.0002584,2]
[341662361,1731071696152,-234.804876,0.0002584,2]
[341662362,1731071696177,-1984.44,0.00025844,2]
[341662363,1731071696199,-2571.66,0.00025844,2]
[341662364,1731071696222,-199.29116462,0.00025844,2]
[341662365,1731071696245,-587.0,0.00025884,2]
[341662366,1731071696269,-168.0,0.0002589,2]
[341662367,1731071696292,-2163.22693223,0.00025928,2]
[341662368,1731071696315,-2564.42,0.00026,14]
[341662369,1731071696339,-572.08,0.00026027,2]
[341662370,1731071696362,-2295.09,0.00026027,2]
[341662371,1731071696386,-2169.07,0.00026027,2]
[341662372,1731071696409,-220.655073,0.00026027,7]
[341662373,1731071696432,-220.655072,0.00026027,7]
[341662374,1731071696454,-235.878636,0.00026027,7]
[341662375,1731071696476,-235.878638,0.00026027,7]
[341662376,1731071696498,-605.39,0.000261,14]
[341662377,1731071696520,-151.0,0.000261,7]
[341662378,1731071696543,-151.0,0.000261,7]
[341662379,1731071696565,-3200.0,0.00026114,2]
[341662380,1731071696588,-1984.44,0.00026118,2]
[341662381,1731071696609,-2571.66,0.00026118,2]
[341662382,1731071696631,-303.628337,0.00026155,2]
[341662383,1731071696653,-159.32501,0.00026155,2]
[341662384,1731071696675,-986.2198,0.00026155,2]
[341662385,1731071696696,-234.804876,0.00026155,2]
[341662386,1731071696718,-500.0,0.00026195,2]
[341662387,1731071696738,-325.64,0.000262,14]
[341662388,1731071696761,-572.08,0.00026301,2]
[341662389,1731071696784,-2295.09,0.00026301,2]
[341662390,1731071696807,-2169.07,0.00026301,2]
[341662391,1731071696830,-151.0,0.00026381,4]
[341662392,1731071696851,-1984.44,0.00026392,2]
[341662393,1731071696873,-2571.66,0.00026392,2]
[341662394,1731071696894,-300.0,0.000264,2]
[341662395,1731071696915,-167.450544,0.00026471,2]
[341662396,1731071696937,-303.628337,0.00026471,2]
[341662397,1731071696959,-159.32501,0.00026471,2]
[341662398,1731071696980,-986.2198,0.00026471,2]
[341662399,1731071697001,-234.804876,0.00026471,2]
[341662400,1731071697027,-572.08,0.00026575,2]
[341662401,1731071697050,-2295.09,0.00026575,2]
[341662402,1731071697169,-2169.07,0.00026575,2]
[341662403,1731071697195,-151.0,0.00026642,7]
[341662404,1731071697218,-151.0,0.00026642,7]
[341662405,1731071697239,-1000.0,0.00026642,2]
[341662406,1731071697262,-1000.0,0.00026642,2]
[341662407,1731071697283,-1000.0,0.00026642,2]
[341662408,1731071697305,-1655.53003399,0.00026658,2]
[341662409,1731071697328,-1984.44,0.00026666,2]
[341662410,1731071697349,-2571.66,0.00026666,2]
[341662411,1731071697370,-2163.22693223,0.00026675,2]
[341662412,1731071697391,-504.72780473,0.00026742,2]
[341662413,1731071697412,-600.0,0.00026849,2]
[341662414,1731071697435,-572.08,0.00026849,2]
[341662415,1731071697457,-2295.09,0.00026849,2]
[341662416,1731071697479,-2169.07,0.00026849,2]
[341662417,1731071697499,-6070.0,0.000269,7]
[341662418,1731071697519,-151.0,0.000269,7]
[341662419,1731071697540,-151.0,0.000269,7]
[341662420,1731071697563,-442.407542,0.000269,7]
[341662421,1731071697588,-442.407542,0.000269,7]
[341662422,1731071697610,-188.423233,0.000269,7]
[341662423,1731071697632,-188.423233,0.000269,7]
[341662424,1731071697654,-151.0,0.00026935,4]
[341662425,1731071697675,-151.0,0.0002694,7]
[341662426,1731071697697,-151.0,0.0002694,7]
[341662427,1731071697718,-1984.44,0.0002694,2]
[341662428,1731071697740,-2571.66,0.0002694,2]
[341662429,1731071697761,-506.8976225,0.00026973,2]
[341662430,1731071697783,-500.0,0.00026973,2]
[341662431,1731071697803,-500.0,0.00026973,2]
[341662432,1731071697827,-63730.41242672,0.00027,2]
[341662433,1731071697848,-153.505656,0.00027,7]
[341662434,1731071697868,-154.811369,0.00027,7]
[341662435,1731071697890,-187.108951,0.00027,7]
[341662436,1731071697912,-187.108951,0.00027,7]
[341662437,1731071697935,-225.693171,0.00027,7]
[341662438,1731071697957,-225.693171,0.00027,7]
[341662439,1731071697983,-151.0,0.00027,7]
[341662440,1731071698004,-151.0,0.00027,7]
[341662441,1731071698027,-151.0,0.00027,7]
[341662442,1731071698049,-151.0,0.00027,7]
[341662443,1731071698072,-151.0,0.00027,7]
[341662444,1731071698095,-195.00697,0.00027,7]
[341662445,1731071698117,-151.0,0.00027,7]
[341662446,1731071698140,-195.00697,0.00027,7]
[341662447,1731071698163,-375.22235,0.00027,7]
[341662448,1731071698190,-375.22235,0.00027,7]
[341662449,1731071698212,-255.084672,0.00027,7]
[341662450,1731071698235,-255.084672,0.00027,7]
[341662451,1731071698359,186.201075,0.00021918,2]
[341662452,1731071698386,186.201075,0.00024482,2]
[341662453,1731071698535,753.98,0.00024657,2]
[341662454,1731071698562,9504.5,0.00025,14]
[341662455,1731071698592,753.98,0.00024931,2]
[341662456,1731071698617,9504.5,0.00026,14]
[341662457,1731071698645,753.98,0.00025205,2]
[341662458,1731071698672,500.0,0.00021917,2]
[341662459,1731071698700,753.98,0.00025479,2]
[341662460,1731071698726,2064.22,0.0002544,10]
[341662461,1731071698756,500.0,0.00022191,2]
[341662462,1731071698783,753.98,0.00025753,2]
[341662463,1731071698808,500.0,0.00022675,2]
[341662464,1731071698838,500.0,0.00022465,2]
[341662465,1731071698862,500.0,0.00024045,2]
[341662466,1731071698887,10410.23,0.00025,14]
[341662467,1731071698913,500.0,0.00022739,2]
[341662468,1731071698940,500.0,0.00023013,2]
[341662469,1731071698969,10410.23,0.00026,14]
[341662470,1731071698999,500.0,0.00024398,2]
[341662471,1731071699030,500.0,0.00024398,2]
[341662472,1731071699061,500.0,0.00024658,2]
[341662473,1731071699097,500.0,0.00024398,2]
[341662474,1731071699122,500.0,0.00024658,2]
[341662475,1731071699149,500.0,0.00023287,2]
[341662476,1731071699186,500.0,0.00024398,2]
[341662477,1731071699213,500.0,0.00024658,2]
[341662478,1731071699254,500.0,0.00024658,2]
[341662479,1731071699296,250.0,0.00024658,2]
[341662480,1731071699348,500.0,0.00023561,2]
[341662481,1731071699508,500.0,0.00023835,2]
[341662482,1731071699557,753.98,0.00026027,2]
[341662483,1731071699601,500.0,0.00024109,2]
[341662484,1731071699657,753.98,0.00026301,2]
[341662485,1731071699685,500.0,0.00024383,2]
[341662486,1731071699745,753.98,0.00026575,2]
[341662487,1731071699772,500.0,0.00024657,2]
[341662488,1731071699837,753.98,0.00026849,2]
[341662489,1731071699874,500.0,0.00024931,2]
[341662490,1731071699905,500.0,0.00025205,2]
[341662491,1731071699940,500.0,0.00025479,2]
[341662492,1731071699998,303.33841898,0.00025753,2]
[341662494,1731071700032,1095.11,0.00024657,2]
[341662495,1731071700071,1095.11,0.00024931,2]
[341662496,1731071700103,1095.11,0.00025205,2]
[341662497,1731071700137,1062.49,0.00022282,2]
[341662498,1731071700167,1095.11,0.00025479,2]
[341662499,1731071700207,1062.49,0.00022556,2]
[341662500,1731071700237,1095.11,0.00025753,2]
[341662501,1731071700275,1062.49,0.0002283,2]
[341662502,1731071700306,1095.11,0.00026027,2]
[341662503,1731071700338,1062.49,0.00023104,2]
[341662504,1731071700367,1095.11,0.00026301,2]
[341662505,1731071700397,1062.49,0.00023378,2]
[341662506,1731071700426,1095.11,0.00026575,2]
[341662507,1731071700471,1062.49,0.00023652,2]
[341662508,1731071700502,1095.11,0.00026849,2]
[341662509,1731071700532,1062.49,0.00023926,2]
[341662510,1731071700571,1062.49,0.000242,2]
[341662511,1731071700718,1062.49,0.00024474,2]
[341662512,1731071700800,150.0,0.00024658,2]
[341662513,1731071700982,1062.49,0.00024748,2]
[341662514,1731071701249,1062.49,0.00025022,2]
[341662515,1731071701532,1062.49,0.00025296,2]
[341662516,1731071701792,1062.49,0.0002557,2]
[341662517,1731071702092,1062.49,0.00025844,2]
[341662518,1731071702417,1062.49,0.00026118,2]
[341662519,1731071702698,1062.49,0.00026392,2]
[341662520,1731071703029,1062.49,0.00026666,2]
[341662521,1731071703332,1062.49,0.0002694,2]
[341662522,1731071704097,683.269983,0.00024658,7]
[341662523,1731071704498,3200.0,0.00026299,2]
[341662524,1731071704532,683.269983,0.00025,7]
[341662525,1731071705139,683.269983,0.00025021,7]
[341662526,1731071705687,683.269983,0.0002522,7]
[341662527,1731071706932,683.269983,0.0002528,7]
[341662528,1731071707314,683.269983,0.0002532,7]
[341662529,1731071707807,683.269983,0.0002538,7]
[341662530,1731071708124,683.269983,0.0002545,7]
[341662531,1731071710098,683.269983,0.0002554,7]
[341662532,1731071710539,683.269983,0.0002563,7]
[341662533,1731071711043,683.269983,0.00024658,7]
[341662534,1731071711548,683.269983,0.00025,7]
[341662535,1731071711951,683.269983,0.00025021,7]
[341662536,1731071712353,683.269983,0.0002522,7]
[341662537,1731071712643,500.0,0.00024658,2]
[341662538,1731071712694,500.0,0.00024658,2]
[341662539,1731071712750,303.55756374,0.00024658,2]
[341662540,1731071712777,683.269983,0.0002528,7]
[341662541,1731071713185,683.269983,0.0002532,7]
[341662542,1731071713609,500.0,0.00022675,2]
[341662543,1731071713711,683.269983,0.0002538,7]
[341662544,1731071713758,1000.0,0.00024045,2]
[341662545,1731071713869,1500.0,0.0002655,2]
[341662546,1731071714111,683.269983,0.0002545,7]
[341662547,1731071714687,683.269983,0.0002554,7]
[341662548,1731071715083,683.269991,0.0002563,7]
[341662549,1731071715706,3200.0,0.00026299,2]
[341662550,1731071726914,3560.419,0.00026299,2]
[341662551,1731071731060,1002.92,0.00031997,57]
[341662552,1731071736530,1349.769,0.00025131,2]
[341662553,1731071736669,151.0,0.000244,7]
[341662554,1731071737088,151.0,0.00024658,7]
[341662555,1731071737118,915.23,0.00024657,2]
[341662556,1731071737364,915.23,0.00024931,2]
[341662557,1731071737551,151.0,0.000249,7]
[341662558,1731071737648,915.23,0.00025205,2]
[341662559,1731071737904,151.0,0.00025,7]
[341662560,1731071737933,915.23,0.00025479,2]
[341662561,1731071738293,151.0,0.00025021,7]
[341662562,1731071738361,915.23,0.00025753,2]
[341662563,1731071738654,915.23,0.00026027,2]
[341662564,1731071738683,151.0,0.0002522,7]
[341662565,1731071738932,915.23,0.00026301,2]
[341662566,1731071739100,151.0,0.0002528,7]
[341662567,1731071739211,500.0,0.00022282,2]
[341662568,1731071739240,915.23,0.00026575,2]
[341662569,1731071739432,151.0,0.0002531,7]
[341662570,1731071739469,444.21753726,0.00022556,2]
[341662571,1731071739547,915.23,0.00026849,2]
[341662572,1731071739833,151.0,0.0002537,7]
[341662573,1731071740240,151.0,0.0002543,7]
[341662574,1731071740648,151.0,0.000244,7]
[341662575,1731071741054,151.0,0.00024658,7]
[341662576,1731071741365,151.0,0.000249,7]
[341662577,1731071741795,151.0,0.00025,7]
[341662578,1731071742217,151.0,0.00025021,7]
[341662579,1731071742596,151.0,0.0002522,7]
[341662580,1731071742936,151.0,0.0002528,7]
[341662581,1731071743124,150.0,0.00025131,2]
[341662582,1731071743342,151.0,0.0002531,7]
[341662583,1731071743684,275.743217,0.0002537,7]
[341662584,1731071752774,309.685279,0.00024658,7]
[341662585,1731071752971,151.0,0.000244,7]
[341662586,1731071753212,309.685279,0.00025,7]
[341662587,1731071753404,151.0,0.00024658,7]
[341662588,1731071753659,309.685279,0.00025021,7]
[341662589,1731071754134,309.685279,0.0002522,7]
[341662590,1731071754439,151.0,0.000249,7]
[341662591,1731071754525,309.685279,0.0002528,7]
[341662592,1731071754994,309.685279,0.0002532,7]
[341662593,1731071755271,529.0,0.00025131,2]
[341662594,1731071755396,151.0,0.00025,7]
[341662595,1731071755425,309.685279,0.0002538,7]
[341662596,1731071755495,1137.0,0.00025131,2]
[341662597,1731071755855,309.685279,0.0002545,7]
[341662598,1731071755883,151.0,0.00025021,7]
[341662599,1731071756327,151.0,0.0002522,7]
[341662600,1731071756356,309.685279,0.0002554,7]
[341662601,1731071756561,3000.0,0.00031997,59]
[341662602,1731071756721,151.0,0.0002528,7]
[341662603,1731071756749,309.685279,0.0002563,7]
[341662604,1731071757174,309.685279,0.00024658,7]
[341662605,1731071757205,151.0,0.0002531,7]
[341662606,1731071757614,500.0,0.00021917,2]
[341662607,1731071757645,309.685279,0.00025,7]
[341662608,1731071757672,151.0,0.0002537,7]
[341662609,1731071757896,500.0,0.00022191,2]
[341662610,1731071758088,309.685279,0.00025021,7]
[341662611,1731071758133,214.795483,0.0002543,7]
[341662612,1731071758200,500.0,0.00022465,2]
[341662613,1731071758632,500.0,0.00022739,2]
[341662614,1731071758712,309.685279,0.0002522,7]
[341662615,1731071758963,500.0,0.00023013,2]
[341662616,1731071759181,309.685279,0.0002528,7]
[341662617,1731071759231,500.0,0.00023287,2]
[341662618,1731071759514,500.0,0.00023561,2]
[341662619,1731071759608,1765.38,0.00025,2]
[341662620,1731071759637,309.685279,0.0002532,7]
[341662621,1731071759797,500.0,0.00023835,2]
[341662622,1731071760019,309.685279,0.0002538,7]
[341662623,1731071760086,500.0,0.00024109,2]
[341662624,1731071760367,500.0,0.00024383,2]
[341662625,1731071760500,309.685279,0.0002545,7]
[341662626,1731071760681,500.0,0.00024657,2]
[341662627,1731071760932,500.0,0.00024931,2]
[341662628,1731071761210,500.0,0.00025205,2]
[341662629,1731071761516,500.0,0.00025479,2]
[341662630,1731071761666,309.685279,0.0002554,7]
[341662631,1731071761811,500.0,0.00025753,2]
[341662632,1731071762149,500.0,0.00026027,2]
[341662633,1731071762425,500.0,0.00026301,2]
[341662634,1731071762672,500.0,0.00026575,2]
[341662635,1731071762762,309.685287,0.0002563,7]
[341662636,1731071762950,500.0,0.00026849,2]
[341662637,1731071765448,500.0,0.00022282,2]
[341662638,1731071766759,2393.0,0.00025131,2]
[341662639,1731071773098,150.0,0.00024658,2]
[341662640,1731071779645,150.0,0.00031997,30]
[341662641,1731071783720,2336.0,0.00021917,2]
[341662642,1731071783984,2336.0,0.00022191,2]
[341662643,1731071784255,2336.0,0.00022465,2]
[341662644,1731071784519,2336.0,0.00022739,2]
[341662645,1731071784770,2336.0,0.00023013,2]
[341662646,1731071785030,2336.0,0.00023287,2]
[341662647,1731071785301,1414.126789,0.00023561,2]
[341662648,1731071788971,600.0,0.00026849,2]
[341662649,1731071791411,500.0,0.00022282,2]
[341662650,1731071791721,500.0,0.00022556,2]
[341662651,1731071791979,500.0,0.0002283,2]
[341662652,1731071792570,500.0,0.00023104,2]
[341662653,1731071792611,500.0,0.00023378,2]
[341662654,1731071792896,198.18503475,0.00023652,2]
[341662655,1731071794024,178.6509184,0.00026063,2]
[341662656,1731071805587,727.0,0.00027,60]
[341662657,1731071815775,3000.0,0.00031997,61]
[341662658,1731071820081,3000.0,0.00031997,63]
[341662660,1731071907234,1820.7,0.0003196,54]
[341662661,1731071935233,1000.0,0.0003196,120]
[341662662,1731071935821,1000.0,0.0003196,120]
[341662663,1731071936238,287.799999,0.0003196,120]
[341662664,1731071974705,150.0,0.0003196,30]
[341662665,1731071975066,171.253712,0.0003196,30]
[341662666,1731071975292,2805.0,0.0003196,49]
[341662667,1731071997671,1771.0,0.00020843,2]
[341662668,1731072006317,2805.0,0.0003196,47]
[341662669,1731072066103,195.0,0.0003196,47]
[341662860,1731072076442,169.849451,0.00013973,2]
[341662861,1731072081353,5000.0,0.0003196,120]
[341662862,1731072106384,2000.0,0.0003196,120]
[341662863,1731072115045,1384.0,0.0002,2]
[341662864,1731072130049,3000.0,0.0003196,45]
[341662897,1731072168157,3000.0,0.00031996,42]
[341663180,1731072220525,3000.0,0.00031996,37]
[341663182,1731072233162,566.799999,0.00031996,120]
[341663201,1731072272728,694.44444444,0.00020843,2]
[341663202,1731072279341,250.32163189,0.00027,60]
[341663204,1731072296826,3000.0,0.00031996,35]
[341663205,1731072300901,3000.0,0.00031996,33]
[341663206,1731072304911,3000.0,0.00031996,31]
[341663209,1731072333135,-190.6274425,0.00020935,2]
[341663210,1731072333159,-365.887786,0.00021553,2]
[341663211,1731072333182,-300.0,0.00021676,2]
[341663212,1731072333206,-300.0,0.00021676,2]
[341663213,1731072333229,-1445.7563059,0.00021677,2]
[341663226,1731072427116,-300.0,0.00021676,2]
[341663227,1731072427139,-64.90642236,0.00021676,2]
[341663228,1731072448104,-214.10182154,0.00021676,2]
[341663229,1731072452113,-20.9917561,0.00021676,2]
[341663230,1731072452135,-778.85754511,0.00021677,2]
[341663231,1731072453876,3000.0,0.00031996,69]
[341663232,1731072471469,437.52900484,0.00031996,120]
[341663233,1731072477350,1990.08188409,0.00031996,30]
[341663235,1731072484221,196.95718389,0.00031996,30]
[341663238,1731072496387,2507.82830602,0.00031996,32]
[341663239,1731072505756,4395.999999,0.00031996,120]
[341663240,1731072513629,1025.74830886,0.00031996,120]
[341663241,1731072517416,1604.37426944,0.00031996,30]
[341663242,1731072521041,14798.36792785,0.00031996,120]
[341663243,1731072522356,3032.64248648,0.00031996,30]
[341663244,1731072522628,3000.0,0.00031996,83]
[341663245,1731072522947,4472.73739171,0.00031996,120]
[341663246,1731072523632,6324.66160425,0.00031996,30]
[341663247,1731072523752,4924.49951384,0.00031996,120]
[341663248,1731072523911,3895.46317432,0.00031996,60]
[341663249,1731072524548,1415.97811294,0.00031996,30]
[341663250,1731072524601,849.07357203,0.00031996,30]
[341663251,1731072524832,49368.31933028,0.00022,30]
[341663252,1731072526018,1996.7464315,0.00031996,120]
[341663253,1731072526163,299.38158648,0.00031996,30]
[341663254,1731072526691,304.97301698,0.00031996,120]
[341663255,1731072527538,1021.63793505,0.00031996,120]
[341663256,1731072528357,594.21731533,0.00031996,30]
[341663257,1731072528575,2072.26571387,0.00031996,30]
[341663258,1731072528657,5867.48047034,0.00031996,120]
[341663259,1731072528717,2269.94688127,0.00031996,120]
[341663260,1731072529059,1515.699421,0.00031996,120]
[341663261,1731072529114,2851.72719014,0.00031996,120]
[341663262,1731072529520,1567.69798029,0.00031996,120]
[341663263,1731072530094,2497.67459923,0.00031996,120]
[341663264,1731072531667,4241.39259516,0.00031996,120]
[341663265,1731072532326,701.34481886,0.00031996,120]
[341663266,1731072532867,317.42649424,0.00031996,120]
[341663267,1731072532992,1381.60482304,0.00031996,120]
[341663268,1731072533127,958.97786695,0.00031996,30]
[341663269,1731072533299,1180.8687665,0.00031996,120]
[341663270,1731072533615,200.51421998,0.00031996,30]
[341663271,1731072533712,1497.07864408,0.00031996,30]
[341663272,1731072564123,-178.6509184,0.00021652,2]
[341663273,1731072564143,-1015.8939145,0.00021676,2]
[341663274,1731072564165,-300.0,0.00021676,2]
[341663275,1731072564187,-300.0,0.00021676,2]
[341663276,1731072564209,-920.33140329,0.00021677,2]
[341663277,1731072573167,-220.607828,0.00021178,2]
[341663278,1731072573190,-6228.222637,0.00021677,2]
[341663279,1731072579222,3000.0,0.00031996,88]
[341663291,1731072602534,5000.0,0.00031996,30]
[341663292,1731072614656,500.0,0.00031996,30]
[341663293,1731072614712,3000.0,0.00031996,90]
[341663294,1731072617134,500.0,0.00031996,30]
[341663295,1731072622908,500.0,0.00031996,30]
[341663296,1731072624527,500.0,0.00031996,30]
[341663306,1731072633137,-406.0222147,0.00021086,2]
[341663307,1731072633147,-694.44444444,0.00021676,2]
[341663308,1731072633157,-6409.9792362,0.00021677,2]
[341663309,1731072633166,-300.0,0.00021916,2]
[341663310,1731072633176,-300.0,0.00021916,2]
[341663311,1731072633186,-500.0,0.00021917,2]
[341663312,1731072633195,-500.0,0.00021917,2]
[341663313,1731072633204,-520.6186393,0.00021917,2]
[341663314,1731072633214,-500.0,0.00021917,2]
[341663315,1731072633223,-500.0,0.00021917,2]
[341663316,1731072633233,-500.0,0.00021917,2]
[341663317,1731072633243,-500.0,0.00021917,2]
[341663318,1731072633252,-500.0,0.00021917,2]